[Event "*** Titled Tuesday Blitz"]
[Site "Chess.com"]
[Date "2019.05.07"]
[Round "5"]
[White "chessking2151"]
[Black "hellokostya"]
[Result "1-0"]
[WhiteElo "2598"]
[BlackElo "2530"]
[TimeControl "180+2"]
[EndTime "14:09:20 PDT"]
[Termination "chessking2151 won by resignation"]

1. e4 {[%clk 0:01:47.9]} 1... c5 {[%clk 0:02:58.2]} 2. Nf3 {[%clk 0:01:40]} 2...
e6 {[%clk 0:02:56.5]} 3. d4 {[%clk 0:01:39.4]} 3... cxd4 {[%clk 0:02:58.4]} 4.
Nxd4 {[%clk 0:01:41.2]} 4... Nc6 {[%clk 0:02:59.5]} 5. Nc3 {[%clk 0:01:42.4]}
5... Qc7 {[%clk 0:03:00.8]} 6. Be3 {[%clk 0:01:42.9]} 6... a6 {[%clk 0:03:01.1]}
7. a3 {[%clk 0:01:44.3]} 7... Nf6 {[%clk 0:02:59.1]} 8. f4 {[%clk 0:01:40.5]}
8... Be7 {[%clk 0:02:54.8]} 9. Qf3 {[%clk 0:01:31.2]} 9... d6 {[%clk 0:02:51.1]}
10. Bd3 {[%clk 0:01:25.3]} 10... Bd7 {[%clk 0:02:39.5]} 11. h3 {[%clk
0:00:46.9]} 11... O-O {[%clk 0:02:31.1]} 12. g4 {[%clk 0:00:46.6]} 12... Nxd4
{[%clk 0:02:30.8]} 13. Bxd4 {[%clk 0:00:46.8]} 13... e5 {[%clk 0:02:32.1]} 14.
Be3 {[%clk 0:00:46.4]} 14... exf4 {[%clk 0:02:29.5]} 15. Bxf4 {[%clk 0:00:47.3]}
15... Be6 {[%clk 0:02:30.6]} 16. O-O-O {[%clk 0:00:21.3]} 16... Nd7 {[%clk
0:02:30.1]} 17. Kb1 {[%clk 0:00:20.9]} 17... Bf6 {[%clk 0:02:27]} 18. Nd5 {[%clk
0:00:19.6]} 18... Bxd5 {[%clk 0:02:27.6]} 19. exd5 {[%clk 0:00:21.5]} 19... Qb6
{[%clk 0:02:23.6]} 20. Bc1 {[%clk 0:00:21.3]} 20... Rfe8 {[%clk 0:02:13.9]} 21.
Qf5 {[%clk 0:00:21.7]} 21... Nf8 {[%clk 0:02:12.7]} 22. g5 {[%clk 0:00:22.4]}
22... Be5 {[%clk 0:02:09.4]} 23. Rhf1 {[%clk 0:00:22.2]} 23... Re7 {[%clk
0:02:09.8]} 24. h4 {[%clk 0:00:20.3]} 24... g6 {[%clk 0:02:00]} 25. Qg4 {[%clk
0:00:20.9]} 25... Rae8 {[%clk 0:01:42.1]} 26. h5 {[%clk 0:00:20.7]} 26... Qd4
{[%clk 0:01:42.4]} 27. Qg2 {[%clk 0:00:18]} 27... Qc5 {[%clk 0:01:30.7]} 28.
hxg6 {[%clk 0:00:12.6]} 28... fxg6 {[%clk 0:01:30.7]} 29. Rf3 {[%clk 0:00:08]}
29... b5 {[%clk 0:01:29.7]} 30. Rdf1 {[%clk 0:00:07.5]} 30... b4 {[%clk
0:01:29.1]} 31. Be3 {[%clk 0:00:06.4]} 31... Qa5 {[%clk 0:01:25.7]} 32. axb4
{[%clk 0:00:07.2]} 32... Qxb4 {[%clk 0:01:26.5]} 33. Bc1 {[%clk 0:00:08]} 33...
Rb7 {[%clk 0:01:22.8]} 34. c3 {[%clk 0:00:08.6]} 34... Qc5 {[%clk 0:01:10.7]}
35. Qf2 {[%clk 0:00:07]} 35... Bg7 {[%clk 0:01:10.3]} 36. Qxc5 {[%clk
0:00:07.8]} 36... dxc5 {[%clk 0:01:10.9]} 37. Bxa6 {[%clk 0:00:09]} 37... Ra7
{[%clk 0:00:56.3]} 38. Bc4 {[%clk 0:00:10.2]} 38... Nd7 {[%clk 0:00:57.6]} 39.
d6+ {[%clk 0:00:11.3]} 39... Kh8 {[%clk 0:00:58.7]} 40. Rf7 {[%clk 0:00:12.6]}
40... Rea8 {[%clk 0:00:58.3]} 41. Be6 {[%clk 0:00:11.9]} 41... Ne5 {[%clk
0:00:57]} 42. Rxa7 {[%clk 0:00:13.2]} 42... Rxa7 {[%clk 0:00:58.7]} 43. d7
{[%clk 0:00:14.6]} 43... Nc6 {[%clk 0:00:55.9]} 44. Rf7 {[%clk 0:00:13]} 44...
Ra8 {[%clk 0:00:53]} 45. Bd5 {[%clk 0:00:13.8]} 45... Nd8 {[%clk 0:00:52.7]} 46.
Re7 {[%clk 0:00:15.2]} 1-0

[Event "*** Titled Tuesday Blitz"]
[Site "Chess.com"]
[Date "2019.05.07"]
[Round "5"]
[White "nitpicker"]
[Black "kacprekt"]
[Result "0-1"]
[WhiteElo "2228"]
[BlackElo "2315"]
[TimeControl "180+2"]
[EndTime "14:09:20 PDT"]
[Termination "kacprekt won on time"]

1. d4 {[%clk 0:03:01.9]} 1... Nf6 {[%clk 0:02:59]} 2. c4 {[%clk 0:03:02.6]} 2...
g6 {[%clk 0:03:00.4]} 3. Nc3 {[%clk 0:02:58.4]} 3... d5 {[%clk 0:03:01.4]} 4.
Nf3 {[%clk 0:02:56.7]} 4... Bg7 {[%clk 0:03:02.1]} 5. h4 {[%clk 0:02:57.7]} 5...
dxc4 {[%clk 0:03:00.9]} 6. Bf4 {[%clk 0:02:40.7]} 6... c5 {[%clk 0:02:56.3]} 7.
e3 {[%clk 0:02:38.8]} 7... Bg4 {[%clk 0:02:47.7]} 8. Bxc4 {[%clk 0:02:36.8]}
8... cxd4 {[%clk 0:02:46.1]} 9. exd4 {[%clk 0:02:18.9]} 9... O-O {[%clk
0:02:33.1]} 10. Be2 {[%clk 0:02:13.2]} 10... Nc6 {[%clk 0:02:28.5]} 11. Be3
{[%clk 0:02:06.6]} 11... Nd5 {[%clk 0:02:24.2]} 12. Nxd5 {[%clk 0:01:56.5]}
12... Qxd5 {[%clk 0:02:24.3]} 13. b3 {[%clk 0:01:31]} 13... Rad8 {[%clk
0:02:16.6]} 14. Kf1 {[%clk 0:01:17.9]} 14... h5 {[%clk 0:01:33.6]} 15. Rc1
{[%clk 0:01:16.8]} 15... Nxd4 {[%clk 0:01:09.9]} 16. Nxd4 {[%clk 0:01:14.9]}
16... Bxd4 {[%clk 0:01:11.1]} 17. Bxd4 {[%clk 0:01:01.7]} 17... Qxd4 {[%clk
0:01:10.9]} 18. Qxd4 {[%clk 0:00:50.5]} 18... Rxd4 {[%clk 0:01:12.8]} 19. f3
{[%clk 0:00:51.8]} 19... Bf5 {[%clk 0:01:07.2]} 20. Rc7 {[%clk 0:00:48]} 20...
Rfd8 {[%clk 0:00:57.3]} 21. Kf2 {[%clk 0:00:41.3]} 21... R8d7 {[%clk 0:00:48.9]}
22. Rhc1 {[%clk 0:00:36.9]} 22... Rxh4 {[%clk 0:00:31.4]} 23. Rxd7 {[%clk
0:00:32.2]} 23... Bxd7 {[%clk 0:00:33.3]} 24. Rc7 {[%clk 0:00:30.8]} 24... Bc6
{[%clk 0:00:34.7]} 25. Rxe7 {[%clk 0:00:31.4]} 25... Kf8 {[%clk 0:00:35.7]} 26.
Rc7 {[%clk 0:00:28.9]} 26... Rd4 {[%clk 0:00:35.7]} 27. Bc4 {[%clk 0:00:17.3]}
27... Rf4 {[%clk 0:00:36.2]} 28. Ba6 {[%clk 0:00:14.6]} 28... Rb4 {[%clk
0:00:18.1]} 29. Bc4 {[%clk 0:00:14.9]} 29... Be8 {[%clk 0:00:18.8]} 30. Ke3
{[%clk 0:00:13.3]} 30... Rb6 {[%clk 0:00:19.4]} 31. Kd4 {[%clk 0:00:13.3]} 31...
Rd6+ {[%clk 0:00:14.3]} 32. Ke5 {[%clk 0:00:13.1]} 32... Rd7 {[%clk 0:00:15.3]}
33. Rc8 {[%clk 0:00:11.8]} 33... Ke7 {[%clk 0:00:15.5]} 34. Bd5 {[%clk
0:00:09.5]} 34... f6+ {[%clk 0:00:15.2]} 35. Ke4 {[%clk 0:00:09.4]} 35... Bf7
{[%clk 0:00:16.5]} 36. Bxf7 {[%clk 0:00:04.8]} 36... Kxf7 {[%clk 0:00:18.4]} 37.
Rh8 {[%clk 0:00:03.4]} 37... Ke6 {[%clk 0:00:19.5]} 38. Rg8 {[%clk 0:00:02.2]}
38... g5 {[%clk 0:00:19.6]} 0-1

[Event "*** Titled Tuesday Blitz"]
[Site "Chess.com"]
[Date "2019.05.07"]
[Round "5"]
[White "FedaMaster"]
[Black "Saitama_Hero"]
[Result "0-1"]
[WhiteElo "2297"]
[BlackElo "2230"]
[TimeControl "180+2"]
[EndTime "14:09:26 PDT"]
[Termination "Saitama_Hero won by resignation"]

1. e4 {[%clk 0:03:01.9]} 1... c5 {[%clk 0:02:55.9]} 2. d4 {[%clk 0:03:02.9]}
2... cxd4 {[%clk 0:02:55.2]} 3. c3 {[%clk 0:03:04]} 3... g6 {[%clk 0:02:56.6]}
4. Nf3 {[%clk 0:03:04.5]} 4... Bg7 {[%clk 0:02:56.2]} 5. Bc4 {[%clk 0:03:04.8]}
5... b5 {[%clk 0:02:50]} 6. Bb3 {[%clk 0:02:58.3]} 6... Bb7 {[%clk 0:02:47.8]}
7. O-O {[%clk 0:02:58.5]} 7... e6 {[%clk 0:02:44.1]} 8. Nxd4 {[%clk 0:02:58.6]}
8... a6 {[%clk 0:02:41.7]} 9. a4 {[%clk 0:02:58.1]} 9... bxa4 {[%clk 0:02:39.2]}
10. Rxa4 {[%clk 0:02:56.5]} 10... Ne7 {[%clk 0:02:30.8]} 11. f3 {[%clk
0:02:56.4]} 11... O-O {[%clk 0:02:29.8]} 12. Be3 {[%clk 0:02:57.1]} 12... d5
{[%clk 0:02:29.4]} 13. Nd2 {[%clk 0:02:54.5]} 13... Nd7 {[%clk 0:02:28.7]} 14.
Ra1 {[%clk 0:02:37.7]} 14... Nc5 {[%clk 0:02:24]} 15. Bc2 {[%clk 0:02:38.1]}
15... Rc8 {[%clk 0:02:17.6]} 16. exd5 {[%clk 0:02:29.7]} 16... Nxd5 {[%clk
0:02:16.7]} 17. Bf2 {[%clk 0:02:31.3]} 17... Nf4 {[%clk 0:01:53.8]} 18. Ne4
{[%clk 0:02:28.5]} 18... Nxe4 {[%clk 0:01:52.2]} 19. Bxe4 {[%clk 0:02:25]} 19...
Bxe4 {[%clk 0:01:47.9]} 20. fxe4 {[%clk 0:02:26]} 20... e5 {[%clk 0:01:05.9]}
21. Nf3 {[%clk 0:02:22.9]} 21... Qf6 {[%clk 0:01:05.5]} 22. Be3 {[%clk
0:02:06.5]} 22... Rfd8 {[%clk 0:00:59.8]} 23. Qc2 {[%clk 0:02:07.5]} 23... Qe6
{[%clk 0:00:53.2]} 24. Bxf4 {[%clk 0:02:01.1]} 24... exf4 {[%clk 0:00:55.1]} 25.
Qe2 {[%clk 0:02:01.5]} 25... a5 {[%clk 0:00:38.5]} 26. Kh1 {[%clk 0:01:59.7]}
26... Rc5 {[%clk 0:00:36]} 27. Rfd1 {[%clk 0:01:56.8]} 27... Re8 {[%clk
0:00:36.1]} 28. Ra4 {[%clk 0:01:56.4]} 28... Qc6 {[%clk 0:00:33.1]} 29. Rda1
{[%clk 0:01:50.8]} 29... g5 {[%clk 0:00:31.9]} 30. h3 {[%clk 0:01:49.4]} 30...
h5 {[%clk 0:00:30.4]} 31. Rxa5 {[%clk 0:01:41.3]} 31... Rxa5 {[%clk 0:00:28.7]}
32. Rxa5 {[%clk 0:01:43.2]} 32... Rxe4 {[%clk 0:00:25.4]} 33. Qb5 {[%clk
0:01:39.6]} 33... Qxb5 {[%clk 0:00:16.5]} 34. Rxb5 {[%clk 0:01:40.8]} 34... g4
{[%clk 0:00:18.4]} 35. Rb8+ {[%clk 0:01:41.4]} 35... Bf8 {[%clk 0:00:17.2]} 36.
hxg4 {[%clk 0:01:41.9]} 36... hxg4 {[%clk 0:00:18.7]} 37. Ng5 {[%clk 0:01:40]}
37... Re1+ {[%clk 0:00:14.8]} 38. Kh2 {[%clk 0:01:40.5]} 38... f6 {[%clk
0:00:12.1]} 39. Nh7 {[%clk 0:01:35.6]} 39... Kxh7 {[%clk 0:00:08.7]} 40. Rxf8
{[%clk 0:01:37.5]} 40... Kg6 {[%clk 0:00:09.6]} 41. Rg8+ {[%clk 0:01:37.3]}
41... Kf5 {[%clk 0:00:10.2]} 42. g3 {[%clk 0:01:38.8]} 42... Re2+ {[%clk
0:00:09.5]} 43. Kg1 {[%clk 0:01:40.2]} 43... f3 {[%clk 0:00:09.2]} 44. b4 {[%clk
0:01:35.9]} 44... Rg2+ {[%clk 0:00:09.1]} 45. Kf1 {[%clk 0:01:37.4]} 45... Rxg3
{[%clk 0:00:10.6]} 46. Rc8 {[%clk 0:01:34.6]} 46... Rg2 {[%clk 0:00:10.8]} 47.
b5 {[%clk 0:01:36]} 47... Rb2 {[%clk 0:00:10.5]} 48. Ke1 {[%clk 0:01:24.8]}
48... g3 {[%clk 0:00:11.6]} 49. Rg8 {[%clk 0:01:25.9]} 49... g2 {[%clk
0:00:11.9]} 50. Kd1 {[%clk 0:01:27.2]} 50... Rxb5 {[%clk 0:00:09.6]} 51. Kd2
{[%clk 0:01:27.9]} 51... Rb1 {[%clk 0:00:09.9]} 52. Rxg2 {[%clk 0:01:27.3]}
52... fxg2 {[%clk 0:00:09.6]} 0-1

[Event "*** Titled Tuesday Blitz"]
[Site "Chess.com"]
[Date "2019.05.07"]
[Round "5"]
[White "annamaja"]
[Black "gemarin"]
[Result "1-0"]
[WhiteElo "2176"]
[BlackElo "2089"]
[TimeControl "180+2"]
[EndTime "14:09:30 PDT"]
[Termination "annamaja won on time"]

1. e4 {[%clk 0:03:01.9]} 1... c5 {[%clk 0:02:56.9]} 2. Nf3 {[%clk 0:03:02.6]}
2... Nc6 {[%clk 0:02:56.9]} 3. d4 {[%clk 0:03:03.6]} 3... cxd4 {[%clk
0:02:58.1]} 4. Nxd4 {[%clk 0:03:05.5]} 4... Nf6 {[%clk 0:02:59.3]} 5. Nc3 {[%clk
0:03:06.1]} 5... d6 {[%clk 0:03:00.2]} 6. Be2 {[%clk 0:03:00.1]} 6... e5 {[%clk
0:02:59.9]} 7. Nb3 {[%clk 0:02:58.3]} 7... Be7 {[%clk 0:03:00.1]} 8. Be3 {[%clk
0:02:59.2]} 8... Be6 {[%clk 0:02:59.3]} 9. O-O {[%clk 0:02:57.5]} 9... O-O
{[%clk 0:02:59.3]} 10. f4 {[%clk 0:02:54.9]} 10... exf4 {[%clk 0:02:58.5]} 11.
Bxf4 {[%clk 0:02:54.7]} 11... Ne5 {[%clk 0:02:59.7]} 12. Qe1 {[%clk 0:02:52.8]}
12... Rc8 {[%clk 0:02:52.1]} 13. Rd1 {[%clk 0:02:49.6]} 13... Qb6+ {[%clk
0:02:45.1]} 14. Kh1 {[%clk 0:02:39.2]} 14... Rfd8 {[%clk 0:02:36.3]} 15. Qg3
{[%clk 0:02:24.9]} 15... Ng6 {[%clk 0:02:25.4]} 16. Be3 {[%clk 0:02:25.4]} 16...
Qc6 {[%clk 0:02:15.3]} 17. Nd4 {[%clk 0:02:11]} 17... Qc7 {[%clk 0:02:01]} 18.
Ndb5 {[%clk 0:01:57.8]} 18... Qd7 {[%clk 0:02:01.4]} 19. Nxa7 {[%clk 0:01:55.3]}
19... Ra8 {[%clk 0:01:56.7]} 20. Bb6 {[%clk 0:01:46.4]} 20... Qe8 {[%clk
0:00:40.7]} 21. Bxd8 {[%clk 0:01:46.4]} 21... Qxd8 {[%clk 0:00:40.4]} 22. Nab5
{[%clk 0:01:41.6]} 22... Ne5 {[%clk 0:00:27.6]} 23. b3 {[%clk 0:01:18.2]} 23...
Qb6 {[%clk 0:00:21.9]} 24. a4 {[%clk 0:01:14.9]} 24... Qc5 {[%clk 0:00:18.4]}
25. h3 {[%clk 0:00:57.3]} 25... h6 {[%clk 0:00:18.9]} 26. Qf2 {[%clk 0:00:57.3]}
26... Qc6 {[%clk 0:00:16.3]} 27. Bf3 {[%clk 0:00:50.8]} 27... b6 {[%clk
0:00:13.8]} 28. Nd5 {[%clk 0:00:47.8]} 28... Bxd5 {[%clk 0:00:14.3]} 29. exd5
{[%clk 0:00:48.8]} 29... Qd7 {[%clk 0:00:15.1]} 30. c4 {[%clk 0:00:45.6]} 30...
Qd8 {[%clk 0:00:14.1]} 31. Rfe1 {[%clk 0:00:41.8]} 31... Nfd7 {[%clk 0:00:14.6]}
32. Nd4 {[%clk 0:00:37.9]} 32... Bf6 {[%clk 0:00:12.1]} 33. Nc6 {[%clk
0:00:33.5]} 33... Qf8 {[%clk 0:00:13.1]} 34. Be4 {[%clk 0:00:31.4]} 34... Nc5
{[%clk 0:00:12.2]} 35. Bc2 {[%clk 0:00:27.4]} 35... Rc8 {[%clk 0:00:10.4]} 36.
Qf5 {[%clk 0:00:26.6]} 36... Ng6 {[%clk 0:00:06.8]} 37. b4 {[%clk 0:00:21.4]}
37... Nb7 {[%clk 0:00:05.2]} 38. Qd7 {[%clk 0:00:21.4]} 1-0

[Event "*** Titled Tuesday Blitz"]
[Site "Chess.com"]
[Date "2019.05.07"]
[Round "5"]
[White "Durarbayli"]
[Black "RegZryt"]
[Result "0-1"]
[WhiteElo "2740"]
[BlackElo "2525"]
[TimeControl "180+2"]
[EndTime "14:09:33 PDT"]
[Termination "RegZryt won by resignation"]

1. Nf3 {[%clk 0:03:01.9]} 1... d5 {[%clk 0:03:00.2]} 2. c4 {[%clk 0:03:03]} 2...
e6 {[%clk 0:03:01.2]} 3. g3 {[%clk 0:03:03.6]} 3... Nf6 {[%clk 0:03:01.8]} 4.
Bg2 {[%clk 0:03:05.1]} 4... Be7 {[%clk 0:03:03.4]} 5. O-O {[%clk 0:03:06.3]}
5... O-O {[%clk 0:03:05.1]} 6. b3 {[%clk 0:03:05.7]} 6... c5 {[%clk 0:03:02.5]}
7. cxd5 {[%clk 0:03:03.2]} 7... Nxd5 {[%clk 0:03:03.3]} 8. Bb2 {[%clk
0:03:03.8]} 8... Bf6 {[%clk 0:03:04.3]} 9. Nc3 {[%clk 0:03:03.8]} 9... Nc6
{[%clk 0:03:04.8]} 10. Rc1 {[%clk 0:03:03.6]} 10... b6 {[%clk 0:03:05.3]} 11.
Qc2 {[%clk 0:02:57.4]} 11... Ndb4 {[%clk 0:02:52]} 12. Qb1 {[%clk 0:02:56.4]}
12... Bb7 {[%clk 0:02:53.1]} 13. Rfd1 {[%clk 0:02:38.5]} 13... Nd4 {[%clk
0:02:47.7]} 14. Nxd4 {[%clk 0:02:37.5]} 14... Bxg2 {[%clk 0:02:48.3]} 15. Nxe6
{[%clk 0:02:36.4]} 15... fxe6 {[%clk 0:02:34.3]} 16. Kxg2 {[%clk 0:02:36.1]}
16... Bd4 {[%clk 0:02:35.3]} 17. f3 {[%clk 0:02:35.2]} 17... Nc6 {[%clk
0:02:07.2]} 18. Qe4 {[%clk 0:02:08.5]} 18... Qd7 {[%clk 0:02:06.8]} 19. e3
{[%clk 0:02:08.8]} 19... Bf6 {[%clk 0:02:01.3]} 20. Ba1 {[%clk 0:02:05.1]} 20...
Nb4 {[%clk 0:01:56.7]} 21. a3 {[%clk 0:01:36.4]} 21... Nd3 {[%clk 0:01:56.5]}
22. Rb1 {[%clk 0:01:37.5]} 22... Rad8 {[%clk 0:01:53.2]} 23. b4 {[%clk
0:01:33.1]} 23... cxb4 {[%clk 0:00:58.8]} 24. axb4 {[%clk 0:01:31.9]} 24... Qe7
{[%clk 0:01:00.2]} 25. Qc4 {[%clk 0:01:00.1]} 25... Rd7 {[%clk 0:00:55.1]} 26.
Qb3 {[%clk 0:00:43.2]} 26... Rfd8 {[%clk 0:00:55.1]} 27. Ne4 {[%clk 0:00:43.3]}
27... Bxa1 {[%clk 0:00:54.8]} 28. Rxa1 {[%clk 0:00:44.7]} 28... Qxb4 {[%clk
0:00:42.8]} 29. Qxe6+ {[%clk 0:00:45]} 29... Kh8 {[%clk 0:00:43.5]} 30. Rab1
{[%clk 0:00:39.1]} 30... Qf8 {[%clk 0:00:39.4]} 31. Qa2 {[%clk 0:00:18.2]} 31...
h6 {[%clk 0:00:39.4]} 32. g4 {[%clk 0:00:12.2]} 32... Re7 {[%clk 0:00:31.5]} 33.
Rf1 {[%clk 0:00:12.8]} 33... Red7 {[%clk 0:00:29.6]} 34. Rbd1 {[%clk 0:00:12.4]}
34... Qb4 {[%clk 0:00:28.4]} 35. Qb1 {[%clk 0:00:11.4]} 35... Qe7 {[%clk
0:00:27.8]} 36. Ng3 {[%clk 0:00:10.8]} 36... Qc5 {[%clk 0:00:23.8]} 37. Ne4
{[%clk 0:00:10.7]} 37... Qc6 {[%clk 0:00:24.3]} 38. Ng3 {[%clk 0:00:11.9]} 38...
b5 {[%clk 0:00:25]} 39. Qa1 {[%clk 0:00:07.6]} 39... b4 {[%clk 0:00:24.9]} 40.
Nf5 {[%clk 0:00:08.7]} 40... b3 {[%clk 0:00:25.2]} 41. Qc3 {[%clk 0:00:06.6]}
41... Qxc3 {[%clk 0:00:23.8]} 42. dxc3 {[%clk 0:00:08.5]} 42... Nf4+ {[%clk
0:00:25.3]} 43. exf4 {[%clk 0:00:07.5]} 43... Rxd1 {[%clk 0:00:27.2]} 44. Rf2
{[%clk 0:00:08]} 44... R8d2 {[%clk 0:00:28.1]} 0-1

[Event "*** Titled Tuesday Blitz"]
[Site "Chess.com"]
[Date "2019.05.07"]
[Round "5"]
[White "severomorskij"]
[Black "JonahWillow"]
[Result "1-0"]
[WhiteElo "2775"]
[BlackElo "2716"]
[TimeControl "180+2"]
[EndTime "14:09:34 PDT"]
[Termination "severomorskij won by resignation"]

1. d4 {[%clk 0:03:01.9]} 1... Nf6 {[%clk 0:03:00.7]} 2. c4 {[%clk 0:03:00.8]}
2... c5 {[%clk 0:03:01.9]} 3. d5 {[%clk 0:03:01.9]} 3... e6 {[%clk 0:03:03.5]}
4. Nc3 {[%clk 0:03:02]} 4... exd5 {[%clk 0:03:05]} 5. cxd5 {[%clk 0:03:03.9]}
5... d6 {[%clk 0:03:06.3]} 6. e4 {[%clk 0:03:04.8]} 6... g6 {[%clk 0:03:07.9]}
7. f4 {[%clk 0:03:05.9]} 7... Bg7 {[%clk 0:03:08.8]} 8. Bb5+ {[%clk 0:03:06.9]}
8... Nfd7 {[%clk 0:03:10.4]} 9. a4 {[%clk 0:03:05]} 9... Qh4+ {[%clk 0:03:11.6]}
10. g3 {[%clk 0:03:05.6]} 10... Qe7 {[%clk 0:03:13.5]} 11. Nf3 {[%clk
0:03:04.7]} 11... O-O {[%clk 0:03:14.8]} 12. O-O {[%clk 0:03:05]} 12... Na6
{[%clk 0:03:16.4]} 13. Re1 {[%clk 0:03:04.9]} 13... Nb4 {[%clk 0:03:17.3]} 14.
e5 {[%clk 0:02:45.1]} 14... a6 {[%clk 0:03:16.7]} 15. Bf1 {[%clk 0:02:17]} 15...
dxe5 {[%clk 0:03:08.2]} 16. fxe5 {[%clk 0:02:07.5]} 16... Nxe5 {[%clk
0:02:58.2]} 17. Nxe5 {[%clk 0:01:57.7]} 17... Bxe5 {[%clk 0:02:58.9]} 18. Bf4
{[%clk 0:01:57.5]} 18... f6 {[%clk 0:02:44.5]} 19. d6 {[%clk 0:01:44.1]} 19...
Qe6 {[%clk 0:02:29.6]} 20. Bxe5 {[%clk 0:01:41.3]} 20... fxe5 {[%clk 0:02:27.9]}
21. b3 {[%clk 0:01:32.8]} 21... Kg7 {[%clk 0:02:11.5]} 22. Bc4 {[%clk
0:01:32.3]} 22... Qf5 {[%clk 0:02:04.5]} 23. Rf1 {[%clk 0:01:29.8]} 23... Qg4
{[%clk 0:01:51.9]} 24. Rxf8 {[%clk 0:01:19.4]} 24... Kxf8 {[%clk 0:01:47.4]} 25.
Qxg4 {[%clk 0:01:06.3]} 25... Bxg4 {[%clk 0:01:49.3]} 26. Rf1+ {[%clk 0:01:07]}
26... Kg7 {[%clk 0:01:22.2]} 27. Rf7+ {[%clk 0:01:06.4]} 27... Kh6 {[%clk
0:01:23.5]} 28. Ne4 {[%clk 0:01:07]} 28... Bf5 {[%clk 0:01:18.8]} 29. Nf6 {[%clk
0:01:05.5]} 29... g5 {[%clk 0:00:57.9]} 30. Rxb7 {[%clk 0:00:49.5]} 30... Rd8
{[%clk 0:00:51.6]} 31. g4 {[%clk 0:00:40.2]} 31... Kg6 {[%clk 0:00:29.4]} 32.
gxf5+ {[%clk 0:00:36]} 32... Kxf5 {[%clk 0:00:30.9]} 33. Nd7 {[%clk 0:00:27.7]}
33... e4 {[%clk 0:00:28.6]} 34. Kf2 {[%clk 0:00:26.7]} 34... Kf4 {[%clk
0:00:29.3]} 35. Nxc5 {[%clk 0:00:24]} 35... Rxd6 {[%clk 0:00:27.6]} 36. Ne6+
{[%clk 0:00:18.6]} 36... Kg4 {[%clk 0:00:21.5]} 37. Rxb4 {[%clk 0:00:18.6]}
37... Rd2+ {[%clk 0:00:19.4]} 38. Ke3 {[%clk 0:00:19.5]} 38... Rxh2 {[%clk
0:00:21.3]} 39. Bxa6 {[%clk 0:00:19.7]} 39... h5 {[%clk 0:00:18.1]} 40. Rxe4+
{[%clk 0:00:20.1]} 40... Kf5 {[%clk 0:00:19.6]} 41. Nd4+ {[%clk 0:00:20.7]}
41... Kf6 {[%clk 0:00:20.3]} 42. Re6+ {[%clk 0:00:21.7]} 42... Kf7 {[%clk
0:00:21.7]} 43. Bc4 {[%clk 0:00:22.4]} 43... Rh3+ {[%clk 0:00:20.9]} 44. Ke4
{[%clk 0:00:21.2]} 44... Kg7 {[%clk 0:00:17.1]} 45. Nf5+ {[%clk 0:00:21.5]} 1-0

[Event "*** Titled Tuesday Blitz"]
[Site "Chess.com"]
[Date "2019.05.07"]
[Round "5"]
[White "GukeshDommaraju"]
[Black "DrBergerBerger"]
[Result "0-1"]
[WhiteElo "2615"]
[BlackElo "2433"]
[TimeControl "180+2"]
[EndTime "14:09:37 PDT"]
[Termination "DrBergerBerger won by resignation"]

1. c4 {[%clk 0:03:01.9]} 1... c5 {[%clk 0:03:00.1]} 2. Nf3 {[%clk 0:03:01]} 2...
g6 {[%clk 0:02:56]} 3. e3 {[%clk 0:03:01.2]} 3... Nf6 {[%clk 0:02:55.6]} 4. d4
{[%clk 0:02:38.3]} 4... cxd4 {[%clk 0:02:55.5]} 5. exd4 {[%clk 0:02:40.2]} 5...
d5 {[%clk 0:02:54.2]} 6. Nc3 {[%clk 0:02:39.5]} 6... Bg7 {[%clk 0:02:51.1]} 7.
cxd5 {[%clk 0:02:37.1]} 7... O-O {[%clk 0:02:48.7]} 8. Bc4 {[%clk 0:02:37.2]}
8... Nbd7 {[%clk 0:02:47.1]} 9. O-O {[%clk 0:02:36.9]} 9... Nb6 {[%clk
0:02:47.3]} 10. Bb3 {[%clk 0:02:37.5]} 10... Nfxd5 {[%clk 0:02:36.5]} 11. h3
{[%clk 0:02:34.1]} 11... Be6 {[%clk 0:02:27.3]} 12. Re1 {[%clk 0:02:32]} 12...
Rc8 {[%clk 0:02:17.5]} 13. Bg5 {[%clk 0:02:23.4]} 13... Bf6 {[%clk 0:02:10.7]}
14. Bxf6 {[%clk 0:02:07.8]} 14... exf6 {[%clk 0:02:11.1]} 15. Ne4 {[%clk
0:02:09.3]} 15... Nf4 {[%clk 0:02:00.6]} 16. Bxe6 {[%clk 0:02:01.5]} 16... Nxe6
{[%clk 0:01:55.9]} 17. d5 {[%clk 0:01:20.1]} 17... Nc5 {[%clk 0:01:55]} 18. d6
{[%clk 0:01:17]} 18... Nxe4 {[%clk 0:01:30.5]} 19. Rxe4 {[%clk 0:01:18.9]} 19...
Rc4 {[%clk 0:01:31.4]} 20. Re2 {[%clk 0:01:11.5]} 20... Rc6 {[%clk 0:01:25.1]}
21. Rd2 {[%clk 0:00:48.9]} 21... Nc4 {[%clk 0:01:25.5]} 22. Rd4 {[%clk
0:00:48.6]} 22... Rxd6 {[%clk 0:01:22.6]} 23. Rxd6 {[%clk 0:00:49.5]} 23... Qxd6
{[%clk 0:00:49.4]} 24. Qb3 {[%clk 0:00:50.9]} 24... Na5 {[%clk 0:00:45.8]} 25.
Qc3 {[%clk 0:00:49]} 25... b6 {[%clk 0:00:42.6]} 26. Rc1 {[%clk 0:00:43.6]}
26... Rd8 {[%clk 0:00:40.9]} 27. b4 {[%clk 0:00:42.1]} 27... Nb7 {[%clk
0:00:39.1]} 28. Qc7 {[%clk 0:00:39]} 28... Rd7 {[%clk 0:00:33.7]} 29. Qc8+
{[%clk 0:00:36.4]} 29... Kg7 {[%clk 0:00:34.7]} 30. Qa8 {[%clk 0:00:32.5]} 30...
Nd8 {[%clk 0:00:34.1]} 31. Rc8 {[%clk 0:00:32.6]} 31... g5 {[%clk 0:00:26.1]}
32. Qe4 {[%clk 0:00:23.5]} 32... Ne6 {[%clk 0:00:21.4]} 33. h4 {[%clk
0:00:23.7]} 33... h6 {[%clk 0:00:17.2]} 34. hxg5 {[%clk 0:00:22.9]} 34... hxg5
{[%clk 0:00:16.4]} 35. g3 {[%clk 0:00:24.2]} 35... Qd5 {[%clk 0:00:14.5]} 36.
Qe3 {[%clk 0:00:21.2]} 36... Qd1+ {[%clk 0:00:10]} 37. Kg2 {[%clk 0:00:22]}
37... Qd5 {[%clk 0:00:11.9]} 38. Kh2 {[%clk 0:00:20.3]} 38... Qf5 {[%clk
0:00:08.4]} 39. Rc1 {[%clk 0:00:20.4]} 39... Rd3 {[%clk 0:00:09.4]} 40. g4
{[%clk 0:00:17.8]} 40... Qxf3 {[%clk 0:00:09.9]} 41. Qxf3 {[%clk 0:00:15.3]}
41... Rxf3 {[%clk 0:00:11.8]} 42. Kg2 {[%clk 0:00:16.7]} 42... Ra3 {[%clk
0:00:13.4]} 43. Rc8 {[%clk 0:00:17.1]} 43... Nf4+ {[%clk 0:00:15.3]} 0-1